fUSD/lending_fUSD_20240805
["ID","MTS","AMOUNT","RATE_DAILY","PERIOD"]
[334216484,1722843948465,-1282.66408668,0.00038,120]
[334216485,1722843948521,-216.54029945,0.00038,120]
[334216486,1722843948566,-793.0,0.00038159,5]
[334216487,1722843948613,-150.0,0.0003819,120]
[334216488,1722843948660,-1230.87,0.00038356,120]
[334216489,1722843948706,-1230.87,0.00038356,120]
[334216490,1722843948760,-1230.87,0.00038356,120]
[334216491,1722843948806,-1230.87,0.00038356,120]
[334216492,1722843948852,-1230.87,0.00038356,120]
[334216493,1722843948899,-1230.87,0.00038356,120]
[334216494,1722843948947,-1230.87,0.00038356,120]
[334216495,1722843949000,-1230.87,0.00038356,120]
[334216496,1722843949052,-1230.87,0.00038356,120]
[334216497,1722843949101,-1230.87,0.00038356,120]
[334216498,1722843949150,-1230.87,0.00038356,120]
[334216499,1722843949198,-1230.87,0.00038356,120]
[334216500,1722843949245,-1230.87,0.00038356,120]
[334216501,1722843949297,-1230.87,0.00038356,120]
[334216502,1722843949347,-1230.87,0.00038356,120]
[334216503,1722843949395,-1230.87,0.00038356,120]
[334216504,1722843949441,-1230.87,0.00038356,120]
[334216505,1722843949490,-1230.87,0.00038356,120]
[334216506,1722843949536,-1230.87,0.00038356,120]
[334216507,1722843949581,-1230.87,0.00038356,120]
[334216508,1722843949624,-1230.87,0.00038356,120]
[334216509,1722843949671,-1230.87,0.00038356,120]
[334216510,1722843949720,-1230.87,0.00038356,120]
[334216511,1722843949773,-1230.97870957,0.00038356,120]
[334216512,1722843949821,-200.0,0.00038356,60]
[334216513,1722843949868,-1000.0,0.00038356,30]
[334216514,1722843949921,-150.0,0.00038399,120]
[334216515,1722843949967,-452.66529176,0.000384,33]
[334216516,1722843950025,-1000.0,0.00038436,30]
[334216517,1722843950076,-185.41111111,0.00038493,120]
[334216518,1722843950122,-4600.0,0.000385,120]
[334216519,1722843950169,-1000.0,0.00038515,30]
[334216520,1722843950214,-150.0,0.00038571,120]
[334216521,1722843950265,-1000.0,0.00038595,30]
[334216522,1722843950311,-1000.0,0.00038675,30]
[334216523,1722843950359,-151.0,0.00038712,120]
[334216524,1722843950406,-1000.0,0.00038754,30]
[334216525,1722843950456,-150.0,0.00038793,120]
[334216526,1722843950510,-1000.0,0.00038834,30]
[334216527,1722843950555,-421.19767628,0.00038837,120]
[334216528,1722843950596,-300.0,0.00038837,120]
[334216529,1722843950638,-342.4,0.00038837,120]
[334216530,1722843950686,-2810.25771647,0.0003888,90]
[334216531,1722843950737,-486.58680049,0.000389,30]
[334216532,1722843950788,-1000.0,0.00038914,30]
[334216533,1722843950840,-150.0,0.00038957,120]
[334216534,1722843950890,-150.0,0.00038969,120]
[334216535,1722843950937,-407.2987669,0.00038986,70]
[334216536,1722843950989,-1000.0,0.00038993,30]
[334216537,1722843951040,-50000.0,0.00039,29]
[334216538,1722843951090,-20000.0,0.00039,7]
[334216539,1722843951137,-16066.98777498,0.00039,12]
[334216540,1722843951183,-500.0,0.00039,120]
[334216541,1722843951241,-1458.39307462,0.00039,30]
[334216542,1722843951286,-2995.83863178,0.00039,120]
[334216543,1722843951332,-1157.0,0.00039,120]
[334216544,1722843951376,-160.0,0.00039,30]
[334216545,1722843951425,-1000.0,0.00039071,120]
[334216546,1722843951473,-1000.0,0.00039073,30]
[334216547,1722843951530,-150.0,0.00039095,120]
[334216548,1722843951576,-150.0,0.00039138,120]
[334216549,1722843951622,-1000.0,0.00039153,30]
[334216550,1722843951669,-150.0,0.00039199,120]
[334216551,1722843951716,-1000.0,0.00039232,30]
[334216552,1722843951770,-1000.0,0.00039312,30]
[334216553,1722843951815,-185.41111111,0.00039342,120]
[334216554,1722843951865,-150.0,0.00039362,120]
[334216555,1722843951912,-150.0,0.00039386,120]
[334216556,1722843951962,-1000.0,0.00039392,30]
[334216557,1722843952015,-569.55902887,0.000394,30]
[334216558,1722843952064,-186.04829547,0.00039424,7]
[334216559,1722843952112,-150.0,0.00039424,7]
[334216560,1722843952158,-150.0,0.00039424,7]
[334216561,1722843952209,-150.0,0.00039424,7]
[334216562,1722843952257,-150.0,0.00039424,7]
[334216563,1722843952305,-150.0,0.00039424,7]
[334216564,1722843952351,-150.0,0.00039424,7]
[334216565,1722843952396,-299.1016568,0.00039424,7]
[334216566,1722843952447,-150.0,0.00039424,7]
[334216567,1722843952494,-150.0,0.00039424,7]
[334216568,1722843952540,-150.0,0.00039424,7]
[334216569,1722843952587,-150.0,0.00039424,7]
[334216570,1722843952635,-1060.45819603,0.00039452,60]
[334216571,1722843952681,-150.0,0.00039466,120]
[334216572,1722843952958,-186.04829547,0.00039468,7]
[334216573,1722843953005,-1000.0,0.00039471,30]
[334216574,1722843953052,-150.0,0.00039488,7]
[334216575,1722843953098,-186.04829547,0.00039512,7]
[334216576,1722843953143,-3190.79,0.00039529,74]
[334216577,1722843953191,-1000.0,0.00039551,30]
[334216578,1722843953240,-150.0,0.00039552,7]
[334216579,1722843953282,-186.04829547,0.00039556,7]
[334216580,1722843953326,-150.0,0.00039592,7]
[334216581,1722843953371,-186.04829547,0.00039601,7]
[334216582,1722843953413,-150.0,0.00039617,7]
[334216583,1722843953460,-150.0,0.00039626,120]
[334216584,1722843953508,-1000.0,0.0003963,30]
[334216585,1722843953550,-186.04829547,0.00039645,7]
[334216586,1722843953596,-150.0,0.00039654,7]
[334216587,1722843953641,-150.0,0.00039681,7]
[334216588,1722843953687,-186.04829547,0.00039689,7]
[334216589,1722843953740,-1000.0,0.0003971,30]
[334216590,1722843953791,-1166.09,0.00039726,120]
[334216591,1722843953842,-1306.71,0.00039726,120]
[334216592,1722843953889,-186.04829547,0.00039733,7]
[334216593,1722843953935,-150.0,0.00039746,7]
[334216594,1722843953990,-150.0,0.00039761,7]
[334216595,1722843954041,-186.04829547,0.00039778,7]
[334216596,1722843954091,-1000.0,0.0003979,30]
[334216597,1722843954140,-150.0,0.00039797,120]
[334216598,1722843954188,-409.81738489,0.000398,90]
[334216599,1722843954241,-159.68812924,0.000398,120]
[334216600,1722843954290,-5583.94882492,0.000398,120]
[334216601,1722843954338,-150.0,0.0003981,7]
[334216602,1722843954384,-186.04829547,0.00039822,7]
[334216603,1722843954431,-150.0,0.00039822,7]
[334216604,1722843954478,-186.04829547,0.00039866,7]
[334216605,1722843954529,-1000.0,0.00039869,30]
[334216606,1722843954573,-150.0,0.00039875,7]
[334216607,1722843954620,-150.0,0.00039885,7]
[334216608,1722843954664,-588.4624,0.00039888,7]
[334216609,1722843954708,-16140.28240748,0.00039898,36]
[334216610,1722843954754,-5965.4313132,0.000399,5]
[334216611,1722843954799,-100230.09119734,0.000399,120]
[334216612,1722843954844,-9579.51317324,0.000399,30]
[334216613,1722843954888,-186.04829547,0.0003991,7]
[334216614,1722843954935,-150.0,0.00039929,7]
[334216615,1722843954984,-150.0,0.00039939,7]
[334216616,1722843955031,-1000.0,0.00039949,30]
[334216617,1722843955080,-186.04829547,0.00039955,7]
[334216618,1722843955129,-500.0,0.00039968,10]
[334216619,1722843955175,-500.0,0.00039968,10]
[334216620,1722843955219,-3329.78145482,0.0003998,30]
[334216621,1722843955271,-409.0,0.00039986,89]
[334216622,1722843955318,-186.04829547,0.00039999,7]
[334216623,1722843955365,-250.0,0.00039999,30]
[334216624,1722843955415,-50000.0,0.0004,30]
[334216625,1722843955469,-50000.0,0.0004,40]
[334216626,1722843955522,-396.22877885,0.0004,7]
[334216627,1722843955571,-710.30856369,0.0004,10]
[334216628,1722843955618,-890.0,0.0004,15]
[334216629,1722843955668,-1000.0,0.0004,20]
[334216630,1722843955716,-25000.0,0.0004,5]
[334216631,1722843955772,-400.0,0.0004,10]
[334216632,1722843955821,-19043.73534713,0.0004,22]
[334216633,1722843955869,-4644.30993041,0.0004,15]
[334216634,1722843955921,-1814.13095866,0.0004,120]
[334216635,1722843955970,-1970.66618361,0.0004,30]
[334216636,1722843956026,-609.37864062,0.0004,120]
[334216637,1722843956073,-9398.51739087,0.0004,10]
[334216638,1722843956124,-477.12749073,0.0004,30]
[334216639,1722843956172,-675.00229066,0.0004,120]
[334216640,1722843956220,-2927.46883545,0.0004,30]
[334216641,1722843956268,-1483.75146657,0.0004,30]
[334216642,1722843956316,-166.83931948,0.0004,30]
[334216643,1722843956362,-701.42919121,0.0004,30]
[334216644,1722843956411,-598.28153604,0.0004,30]
[334216645,1722843956462,-196.20947265,0.0004,120]
[334216646,1722843956517,-511.55953062,0.0004,120]
[334216647,1722843956567,-1171.0,0.0004,120]
[334216648,1722843956615,-3000.0,0.0004,90]
[334216649,1722843956665,-2000.0,0.0004,120]
[334216650,1722843956713,-2500.0,0.0004,120]
[334216651,1722843956770,-2500.0,0.0004,120]
[334216652,1722843956818,-2500.0,0.0004,120]
[334216653,1722843956865,-2500.0,0.0004,120]
[334216654,1722843956914,-2500.0,0.0004,120]
[334216655,1722843956963,-2500.0,0.0004,120]
[334216656,1722843957017,-2500.0,0.0004,120]
[334216657,1722843957064,-2500.0,0.0004,120]
[334216658,1722843957111,-2500.0,0.0004,120]
[334216659,1722843957160,-2500.0,0.0004,120]
[334216660,1722843957209,-2500.0,0.0004,120]
[334216661,1722843957255,-2500.0,0.0004,120]
[334216662,1722843957302,-2500.0,0.0004,120]
[334216663,1722843957352,-2500.0,0.0004,120]
[334216664,1722843957399,-332.09473817,0.0004,120]
[334216665,1722843957444,-351.39,0.0004,120]
[334216666,1722843957488,-445.15,0.0004,120]
[334216667,1722843957536,-2000.0,0.0004,120]
[334216668,1722843957581,-640.0,0.0004,120]
[334216669,1722843957630,-200.0,0.0004,90]
[334216670,1722843957678,-157.33182647,0.0004,32]
[334216671,1722843957725,-153.28629342,0.0004,120]
[334216672,1722843957775,-2110.0,0.0004,30]
[334216673,1722843957820,-1282.66408668,0.0004,120]
[334216674,1722843957870,-216.54029945,0.0004,120]
[334216675,1722843958144,-2130.0,0.0004,14]
[334216676,1722843958193,-2610.8425708,0.0004,100]
[334216677,1722843958241,-3356.48709751,0.0004,120]
[334216678,1722843958290,-4041.92,0.0004,120]
[334216679,1722843958339,-772.78,0.0004,120]
[334216680,1722843958384,-196.21204697,0.0004,120]
[334216681,1722843958431,-426.510388,0.0004,30]
[334216682,1722843958476,-163.752848,0.0004,10]
[334216683,1722843958525,-150.0,0.0004,60]
[334216684,1722843958574,-200.0,0.0004,120]
[334216685,1722843958627,-150.0,0.00040001,120]
[334216686,1722843958678,-150.0,0.00040003,7]
[334216687,1722843958727,-592.20779829,0.0004001,30]
[334216688,1722843958786,-1000.0,0.00040029,30]
[334216689,1722843958838,-186.04829547,0.00040043,7]
[334216690,1722843958887,-150.0,0.00040068,7]
[334216691,1722843958937,-186.04829547,0.00040087,7]
[334216692,1722843958996,-150.0,0.00040098,7]
[334216693,1722843959049,-1000.0,0.00040108,30]
[334216694,1722843959098,-150.0,0.00040115,7]
[334216695,1722843959150,-186.04829547,0.00040132,7]
[334216696,1722843959198,-150.0,0.00040132,7]
[334216697,1722843959245,-150.0,0.00040144,120]
[334216698,1722843959294,-150.0,0.00040154,7]
[334216699,1722843959342,-151.0,0.00040164,120]
[334216700,1722843959390,-793.0,0.00040167,5]
[334216701,1722843959438,-186.04829547,0.00040176,7]
[334216702,1722843959489,-1000.0,0.00040188,30]
[334216703,1722843959545,-185.41111111,0.00040192,120]
[334216704,1722843959591,-150.0,0.00040197,7]
[334216705,1722843959638,-250.49729528,0.000402,120]
[334216706,1722843959685,-1000.0,0.00040205,120]
[334216707,1722843959741,-186.04829547,0.0004022,7]
[334216708,1722843959789,-150.0,0.0004022,7]
[334216709,1722843959837,-1166.09,0.00040246,120]
[334216710,1722843959889,-1306.71,0.00040246,120]
[334216711,1722843959937,-687.90514729,0.0004025,120]
[334216712,1722843959991,-150.0,0.00040261,7]
[334216713,1722843960048,-186.04829547,0.00040264,7]
[334216714,1722843960103,-150.0,0.00040266,7]
[334216715,1722843960159,-1000.0,0.00040268,30]
[334216716,1722843960215,-150.0,0.000403,7]
[334216717,1722843960272,-1733.56439137,0.000403,120]
[334216718,1722843960328,-186.04829547,0.00040309,7]
[334216719,1722843960385,-150.0,0.00040319,120]
[334216720,1722843960441,-150.0,0.00040325,7]
[334216721,1722843960496,-60054.29663608,0.0004033,6]
[334216722,1722843960551,-150.0,0.00040338,120]
[334216723,1722843960603,-150.0,0.00040346,7]
[334216724,1722843960655,-1000.0,0.00040347,30]
[334216725,1722843960703,-186.04829547,0.00040353,7]
[334216726,1722843960753,-150.0,0.0004039,7]
[334216727,1722843960805,-186.04829547,0.00040397,7]
[334216728,1722843960857,-70424.67475909,0.000404,120]
[334216729,1722843960906,-1000.0,0.00040427,30]
[334216730,1722843960956,-150.0,0.00040434,7]
[334216731,1722843961006,-186.04829547,0.00040441,7]
[334216732,1722843961059,-150.0,0.00040454,7]
[334216733,1722843961110,-186.04829547,0.00040486,7]
[334216734,1722843961159,-260.0037294,0.000405,30]
[334216735,1722843961209,-2110.0,0.000405,30]
[334216736,1722843961256,-1000.0,0.00040507,30]
[334216737,1722843961303,-150.0,0.00040519,7]
[334216738,1722843961352,-150.0,0.00040519,7]
[334216739,1722843961398,-150.0,0.00040519,7]
[334216740,1722843961445,-186.04829547,0.0004053,7]
[334216741,1722843961493,-186.04829547,0.00040574,7]
[334216742,1722843961542,-150.0,0.00040576,7]
[334216743,1722843961587,-150.0,0.00040583,7]
[334216744,1722843961634,-1000.0,0.00040586,30]
[334216745,1722843961682,-150.0,0.00040603,7]
[334216746,1722843961731,-186.04829547,0.00040618,7]
[334216747,1722843961785,-150.0,0.00040618,7]
[334216748,1722843961833,-150.0,0.00040648,7]
[334216749,1722843961882,-186.04829547,0.00040663,7]
[334216750,1722843961931,-1000.0,0.00040666,30]
[334216751,1722843961979,-706.058,0.00040688,7]
[334216752,1722843962044,-186.04829547,0.00040707,7]
[334216753,1722843962105,-150.0,0.00040712,7]
[334216754,1722843962161,-1000.0,0.00040745,30]
[334216755,1722843962214,-186.04829547,0.00040751,7]
[334216756,1722843962266,-1166.09,0.00040767,120]
[334216757,1722843962312,-1306.71,0.00040767,120]
[334216758,1722843962358,-150.0,0.00040771,7]
[334216759,1722843962406,-150.0,0.00040776,7]
[334216760,1722843962455,-421.19767628,0.00040777,120]
[334216761,1722843962500,-525.0,0.00040777,120]
[334216762,1722843962546,-342.4,0.00040777,120]
[334216763,1722843962594,-186.04829547,0.00040795,7]
[334216764,1722843962639,-150.0,0.00040807,7]
[334216765,1722843962686,-5086.49571319,0.00040821,120]
[334216766,1722843962733,-4506.11876269,0.00040821,120]
[334216767,1722843962783,-1000.0,0.00040825,30]
[334216768,1722843962831,-186.04829547,0.00040839,7]
[334216769,1722843962879,-150.0,0.00040841,7]
[334216770,1722843962925,-186.04829547,0.00040884,7]
[334216771,1722843962975,-150.0,0.00040884,7]
[334216772,1722843963035,-506.4932771,0.0004089,20]
[334216773,1722843963089,-394.51777423,0.000409,60]
[334216774,1722843963143,-1000.0,0.00040905,30]
[334216775,1722843963197,-150.0,0.00040905,7]
[334216776,1722843963249,-186.04829547,0.00040928,7]
[334216777,1722843963297,-150.0,0.0004094,7]
[334216778,1722843963348,-150.0,0.0004097,7]
[334216779,1722843963620,-186.04829547,0.00040972,7]
[334216780,1722843963675,-1000.0,0.00040984,30]
[334216781,1722843963726,-204.0,0.0004099,30]
[334216782,1722843963789,-50000.0,0.00041,31]
[334216783,1722843963846,-50000.0,0.00041,41]
[334216784,1722843963901,-119678.94178839,0.00041,10]
[334216785,1722843963959,-2000.0,0.00041,30]
[334216786,1722843964016,-1172.69965906,0.00041,30]
[334216787,1722843964075,-1004.02524006,0.00041,120]
[334216788,1722843964134,-353.06016817,0.00041,120]
[334216789,1722843964189,-1457.43140116,0.00041,120]
[334216790,1722843964250,-3000.0,0.00041,95]
[334216791,1722843964306,-150.0,0.00041,60]
[334216792,1722843964360,-1232.075865,0.00041,120]
[334216793,1722843964419,-2110.0,0.00041,30]
[334216794,1722843964478,-477.59673193,0.00041,120]
[334216795,1722843964543,-1185.87895279,0.00041,120]
[334216796,1722843964598,-186.04829547,0.00041016,7]
[334216797,1722843964650,-150.0,0.00041016,7]
[334216798,1722843964699,-150.0,0.00041034,7]
[334216799,1722843964749,-150.0,0.00041037,7]
[334216800,1722843964801,-185.41111111,0.00041041,120]
[334216801,1722843964850,-1819.62479018,0.00041044,120]
[334216802,1722843964899,-150.0,0.00041051,120]
[334216803,1722843964951,-186.04829547,0.00041061,7]
[334216804,1722843965000,-500.0,0.00041064,10]
[334216805,1722843965051,-500.0,0.00041064,10]
[334216806,1722843965102,-1000.0,0.00041064,30]
[334216807,1722843965151,-650.86334592,0.00041078,120]
[334216808,1722843965198,-706.058,0.00041088,7]
[334216809,1722843965250,-230.27065201,0.00041095,120]
[334216810,1722843965299,-200.0,0.00041096,60]
[334216811,1722843965350,-151.0,0.00041096,14]
[334216812,1722843965401,-151.0,0.00041096,14]
[334216813,1722843965452,-169.05634,0.00041096,14]
[334216814,1722843965501,-615.86,0.00041096,30]
[334216815,1722843966414,2579.47310837,0.00039452,60]
[334216816,1722843966515,2579.47310837,0.00040952,60]
[334216817,1722843966568,212.327928,0.00025,7]
[334216818,1722843966629,196.94,0.00023405,5]
[334216819,1722843966813,13271.06,0.00027397,10]
[334216820,1722843966902,151.0,0.00025,7]
[334216821,1722843967036,151.0,0.00025,7]
[334216822,1722843967119,151.0,0.00025,7]
[334216823,1722843967537,151.0,0.00025,7]
[334216824,1722843967620,151.0,0.00025,7]
[334216825,1722843967718,151.0,0.00025,7]
[334216826,1722843967801,151.0,0.00025,7]
[334216827,1722843967890,151.0,0.00025,7]
[334216828,1722843967976,151.0,0.00025,7]
[334216829,1722843968111,151.0,0.00025,7]
[334216830,1722843968213,151.0,0.00025,7]
[334216831,1722843968292,151.0,0.00025,7]
[334216832,1722843968397,151.0,0.00025,7]
[334216833,1722843968474,151.0,0.00025,7]
[334216834,1722843968549,151.0,0.00025,7]
[334216835,1722843968619,151.0,0.00025,7]
[334216836,1722843968702,151.0,0.00025,7]
[334216837,1722843968796,151.0,0.00025,7]
[334216838,1722843968903,186.7288853,0.00025,7]
[334216839,1722843969765,457.87556005,0.00030403,14]
[334216840,1722843969939,537.24541818,0.00025083,30]
[334216841,1722843970145,617746.76709899,0.00025,11]
[334216842,1722843971009,-150.0,0.00041098,30]
[334216843,1722843971323,-186.04829547,0.00041105,30]
[334216844,1722843971368,-150.0,0.00041108,30]
[334216845,1722843971415,-173.95,0.00041123,30]
[334216846,1722843971462,-1000.0,0.00041144,30]
[334216847,1722843971508,-186.04829547,0.00041149,30]
[334216848,1722843971558,-150.0,0.00041163,30]
[334216849,1722843971609,-186.04829547,0.00041193,30]
[334216850,1722843971658,-1000.0,0.000412,120]
[334216851,1722843971708,-1000.0,0.00041223,30]
[334216852,1722843971755,-150.0,0.00041227,30]
[334216853,1722843971802,-150.0,0.00041236,120]
[334216854,1722843971848,-186.04829547,0.00041238,30]
[334216855,1722843971899,-150.0,0.00041268,30]
[334216856,1722843971945,-150.0,0.00041277,30]
[334216857,1722843972004,-186.04829547,0.00041282,30]
[334216858,1722843972054,-1166.09,0.00041287,120]
[334216859,1722843972101,-1306.71,0.00041287,120]
[334216860,1722843972149,-150.0,0.00041292,30]
[334216861,1722843972197,-1000.0,0.000413,30]
[334216862,1722843972252,-1000.0,0.000413,30]
[334216863,1722843972300,-1000.0,0.00041303,30]
[334216864,1722843972346,-186.04829547,0.00041326,30]
[334216865,1722843972390,-1000.0,0.00041339,120]
[334216866,1722843972437,-150.0,0.00041356,30]
[334216867,1722843972488,-150.0,0.00041366,120]
[334216868,1722843972542,-186.04829547,0.0004137,30]
[334216869,1722843972591,-1000.0,0.00041383,30]
[334216870,1722843972644,-150.0,0.00041401,120]
[334216871,1722843972691,-186.04829547,0.00041415,30]
[334216872,1722843972738,-150.0,0.00041415,30]
[334216873,1722843972795,-150.0,0.00041421,30]
[334216874,1722843972845,-150.0,0.00041441,120]
[334216875,1722843972891,-150.0,0.00041445,30]
[334216876,1722843972942,-186.04829547,0.00041459,30]
[334216877,1722843972991,-1000.0,0.00041462,30]
[334216878,1722843973056,-150.0,0.00041477,120]
[334216879,1722843973106,-150.0,0.00041485,30]
[334216880,1722843973156,-150.0,0.00041499,30]
[334216881,1722843973201,-2110.0,0.000415,30]
[334216882,1722843973252,-186.04829547,0.00041503,30]
[334216883,1722843973300,-1000.0,0.00041542,30]
[334216884,1722843973347,-150.0,0.00041546,120]
[334216885,1722843973395,-186.04829547,0.00041547,30]
[334216886,1722843973445,-150.0,0.00041549,30]
[334216887,1722843973501,-150.0,0.00041561,120]
[334216888,1722843973547,-186.04829547,0.00041592,30]
[334216889,1722843973596,-1000.0,0.000416,30]
[334216890,1722843973643,-150.0,0.00041614,30]
[334216891,1722843973691,-150.0,0.00041614,30]
[334216892,1722843973745,-150.0,0.00041614,30]
[334216893,1722843973793,-150.0,0.00041614,30]
[334216894,1722843973846,-150.0,0.00041614,30]
[334216895,1722843973896,-151.0,0.00041616,120]
[334216896,1722843973948,-1000.0,0.00041622,30]
[334216897,1722843974006,-186.04829547,0.00041636,30]
[334216898,1722843974063,-150.0,0.00041678,30]
[334216899,1722843974114,-186.04829547,0.0004168,30]
[334216900,1722843974168,-1000.0,0.00041701,30]
[334216901,1722843974218,-186.04829547,0.00041724,30]
[334216902,1722843974269,-150.0,0.00041729,30]
[334216903,1722843974321,-150.0,0.00041743,30]
[334216904,1722843974372,-186.04829547,0.00041769,30]
[334216905,1722843974425,-1000.0,0.00041781,30]
[334216906,1722843974478,-150.0,0.00041782,30]
[334216907,1722843974534,-150.0,0.00041807,30]
[334216908,1722843974584,-1166.09,0.00041808,120]
[334216909,1722843974636,-1306.71,0.00041808,120]
[334216910,1722843974688,-186.04829547,0.00041813,30]
[334216911,1722843974736,-150.0,0.00041813,30]
[334216912,1722843974790,-186.04829547,0.00041857,30]
[334216913,1722843974842,-1000.0,0.0004186,30]
[334216914,1722843974891,-150.0,0.00041871,30]
[334216915,1722843974944,-185.41111111,0.0004189,120]
[334216916,1722843974993,-1000.0,0.000419,30]
[334216917,1722843975044,-186.04829547,0.00041901,30]
[334216918,1722843975093,-150.0,0.00041936,30]
[334216919,1722843975142,-1000.0,0.0004194,30]
[334216920,1722843975189,-186.04829547,0.00041946,30]
[334216921,1722843975234,-150.0,0.00041951,30]
[334216922,1722843975288,-150.0,0.0004196,30]
[334216923,1722843975337,-447.98325168,0.00041966,40]
[334216924,1722843975384,-159.16375389,0.00041966,40]
[334216925,1722843975434,-714.82350735,0.00041966,40]
[334216926,1722843975485,-150.0,0.0004197,120]
[334216927,1722843975535,-186.04829547,0.0004199,30]
[334216928,1722843975584,-50000.0,0.00042,32]
[334216929,1722843975637,-50000.0,0.00042,42]
[334216930,1722843975686,-1200.0,0.00042,120]
[334216931,1722843975740,-674.19891088,0.00042,120]
[334216932,1722843975797,-934.17717429,0.00042,120]
[334216933,1722843975846,-1207.86719132,0.00042,120]
[334216934,1722843975895,-3264.74411403,0.00042,120]
[334216935,1722843975947,-2457.94953706,0.00042,120]
[334216936,1722843976003,-5000.0,0.00042,120]
[334216937,1722843976053,-2000.0,0.00042,48]
[334216938,1722843976106,-150.0,0.00042,75]
[334216939,1722843976156,-461.59,0.00042,120]
[334216940,1722843976204,-2000.0,0.00042,120]
[334216941,1722843976253,-1631.79574327,0.00042,120]
[334216942,1722843976301,-2110.0,0.00042,30]
[334216943,1722843976352,-8000.0,0.00042,30]
[334216944,1722843976628,-400.0,0.00042,30]
[334216945,1722843976675,-150.0,0.00042,30]
[334216946,1722843976726,-1000.0,0.0004202,30]
[334216947,1722843976781,-186.04829547,0.00042034,30]
[334216948,1722843976830,-150.0,0.00042065,30]
[334216949,1722843976877,-186.04829547,0.00042078,30]
[334216950,1722843976926,-150.0,0.00042098,120]
[334216951,1722843976976,-1000.0,0.00042099,30]
[334216952,1722843977029,-150.0,0.00042119,30]
[334216953,1722843977083,-186.04829547,0.00042123,30]
[334216954,1722843977136,-150.0,0.00042129,30]
[334216955,1722843977188,-150.0,0.00042131,120]
[334216956,1722843977240,-500.0,0.0004216,30]
[334216957,1722843977300,-500.0,0.0004216,30]
[334216958,1722843977347,-186.04829547,0.00042167,30]
[334216959,1722843977394,-1000.0,0.00042179,30]
[334216960,1722843977443,-150.0,0.0004219,30]
[334216961,1722843977496,-150.0,0.00042194,30]
[334216962,1722843977543,-1000.0,0.000422,30]
[334216963,1722843977591,-186.04829547,0.00042211,30]
[334216964,1722843977639,-150.0,0.00042211,30]
[334216965,1722843977685,-186.04829547,0.00042255,30]
[334216966,1722843977732,-150.0,0.00042258,30]
[334216967,1722843977783,-1000.0,0.00042259,30]
[334216968,1722843977833,-793.0,0.00042281,30]
[334216969,1722843977882,-150.0,0.00042288,30]
[334216970,1722843977931,-186.04829547,0.000423,30]
[334216971,1722843977981,-150.0,0.00042322,30]
[334216972,1722843978034,-1166.09,0.00042328,120]
[334216973,1722843978083,-1306.71,0.00042328,120]
[334216974,1722843978133,-201.0,0.0004233,30]
[334216975,1722843978188,-201.0,0.0004233,30]
[334216976,1722843978237,-201.0,0.0004233,30]
[334216977,1722843978294,-202.0,0.0004233,30]
[334216978,1722843978343,-202.0,0.0004233,30]
[334216979,1722843978389,-202.0,0.0004233,30]
[334216980,1722843978437,-202.0,0.0004233,30]
[334216981,1722843978487,-215.0,0.0004233,30]
[334216982,1722843978541,-215.0,0.0004233,30]
[334216983,1722843978591,-1000.0,0.00042338,30]